bitfinex/quotes_SOLUSD_20241226
["timestamp","ask_amount","ask_price","bid_price","bid_amount"]
[1735235075966,20.0,189.06,189.0,7.82904173]
[1735235076471,1.3221,189.08,189.01,23.902374]
[1735235077073,1.3221,189.08,188.98,7.82904173]
[1735235077240,20.0,189.06,188.98,7.82904173]
[1735235077442,20.0,189.06,189.01,0.12549]
[1735235077642,20.0,189.06,189.01,23.902374]
[1735235079567,1.3221,189.08,189.01,23.902374]
[1735235081467,1.3221,189.08,189.01,31.73141573]
[1735235083669,1.3221,189.08,189.02,7.82904173]
[1735235083853,2.09256659,189.13,189.04,7.82904173]
[1735235083854,1.3219,189.11,189.04,7.82904173]
[1735235084060,1.3219,189.11,189.06,7.82904173]
[1735235085064,6.5626,189.18,189.07,32.52452479]
[1735235085065,1.3218,189.14,189.07,32.52452479]
[1735235086922,1.3218,189.14,189.07,24.69548306]
[1735235087178,1.3218,189.14,189.07,32.52452479]
[1735235087576,1.3218,189.14,189.07,24.69548306]
[1735235087777,1.3218,189.14,189.07,32.52452479]
[1735235089967,1.3218,189.14,189.07,23.902374]
[1735235090167,1.3218,189.14,189.06,23.902374]
[1735235090375,1.3218,189.14,189.04,0.79308965]
[1735235090557,1.3218,189.14,189.05,7.82904173]
[1735235090755,1.3218,189.14,189.06,8.62215653]
[1735235091379,1.3218,189.14,189.06,0.7931148]
[1735235092281,1.3218,189.14,189.06,8.62215653]
[1735235093082,1.3218,189.14,189.06,0.7931148]
[1735235093269,20.0,189.13,189.04,0.79312379]
[1735235093580,20.0,189.13,189.05,8.62228631]
[1735235094876,1.3219,189.12,189.05,0.79324458]
[1735235095882,1.3219,189.12,189.04,0.79319668]
[1735235096077,1.3219,189.12,189.05,0.12549]
[1735235099493,3.697,189.16,189.08,7.82904173]
[1735235099494,1.3217,189.15,189.08,7.82904173]
[1735235099671,1.3217,189.15,189.08,8.62208937]
[1735235099987,1.3217,189.15,189.08,0.79304764]
[1735235100367,1.3217,189.15,189.09,31.73141573]
[1735235100793,3.697,189.16,189.1,8.62200708]
[1735235100967,1.3215,189.18,189.11,7.82904173]
[1735235101910,3.7553,189.2,189.12,31.73141573]
[1735235102194,15.7408372,189.25,189.16,7.95453173]
[1735235102690,15.7408372,189.25,189.16,23.902374]
[1735235102691,3.7553,189.25,189.16,23.902374]
[1735235103589,1.321,189.24,189.17,7.82904173]
[1735235103796,3.7553,189.25,189.18,31.73141573]
[1735235103972,3.7553,189.25,189.18,23.902374]
[1735235104309,3.7553,189.25,189.14,3.7813]
[1735235104483,3.7553,189.25,189.16,7.82904173]
[1735235104797,3.7553,189.25,189.17,0.79270029]
[1735235105469,5.0763,189.25,189.17,0.79270029]
[1735235105685,5.0763,189.25,189.17,23.902374]
[1735235105887,5.0763,189.25,189.17,31.73141573]
[1735235106590,5.0763,189.25,189.17,23.902374]
[1735235108497,5.0763,189.25,189.18,7.82904173]
[1735235108803,5.0763,189.25,189.19,7.82904173]
[1735235110306,5.0763,189.25,189.19,7.95453173]
[1735235111676,5.0763,189.25,189.2,23.776884]
[1735235111878,1.3208,189.28,189.2,23.776884]
[1735235112077,20.0,189.26,189.2,23.776884]
[1735235112380,20.0,189.26,189.2,7.82904173]
[1735235112999,20.0,189.26,189.19,23.902374]
[1735235113205,20.0,189.26,189.18,137.5]
[1735235113405,20.0,189.26,189.09,141.2813]
[1735235113706,20.0,189.22,189.1,145.32904173]
[1735235114081,20.0,189.22,189.1,137.5]
[1735235114579,20.0,189.22,189.11,23.902374]
[1735235114785,20.0,189.22,189.13,7.95453173]
[1735235114981,20.0,189.22,189.05,138.29277054]
[1735235115185,20.0,189.21,189.05,137.5]
[1735235115406,20.0,189.21,189.08,7.82904173]
[1735235115605,1.3213,189.2,189.09,31.73141573]
[1735235115809,1.3213,189.2,189.1,7.82904173]
[1735235116006,1.3213,189.2,189.11,23.902374]
[1735235118117,1.3213,189.2,189.1,23.902374]
[1735235118287,1.3213,189.2,189.07,20.0]
[1735235118483,1.3213,189.2,189.08,7.82904173]
[1735235118484,20.0,189.17,189.08,7.82904173]
[1735235118694,20.0,189.17,189.09,23.902374]
[1735235119913,1.3216,189.16,189.09,23.902374]
[1735235120212,3.7822,189.19,189.09,23.902374]
[1735235120213,5.1036,189.19,189.12,31.60592573]
[1735235120407,3.7822,189.19,189.14,23.902374]
[1735235120607,1.3212,189.22,189.14,23.902374]
[1735235120917,1.3212,189.22,189.15,7.82904173]
[1735235121416,1.3212,189.22,189.13,23.902374]
[1735235121599,1.3212,189.22,189.13,31.73141573]
[1735235121790,1.3212,189.22,189.12,137.5]
[1735235121990,1.3212,189.22,189.12,145.32904173]
[1735235122718,20.0,189.2,189.12,137.5]
[1735235123386,20.0,189.2,189.12,145.32904173]
[1735235123591,3.9636,189.22,189.12,145.32904173]
[1735235123592,1.3212,189.22,189.14,7.82904173]
[1735235123993,1.3212,189.22,189.16,7.82904173]
[1735235124190,3.7822,189.23,189.17,32.5240712]
[1735235124437,1.321,189.25,189.19,23.902374]
[1735235125612,1.321,189.25,189.18,0.12549]
[1735235125799,1.321,189.25,189.18,23.902374]
[1735235126390,1.321,189.25,189.18,36.11343494]
[1735235127015,5.103,189.28,189.2,23.902374]
[1735235128028,5.103,189.28,189.2,36.11343494]
[1735235128626,5.103,189.28,189.2,23.902374]
[1735235130622,5.103,189.28,189.2,36.11343494]
[1735235131418,6.0512,189.33,189.22,23.902374]
[1735235131631,3.8027,189.34,189.23,0.79244106]
[1735235131842,1.3204,189.33,189.26,12.21106094]
[1735235132130,1.3204,189.33,189.23,149.71106094]
[1735235132299,1.3204,189.33,189.25,23.902374]
[1735235132498,1.3204,189.33,189.26,0.79235712]
[1735235132912,1.3204,189.33,189.27,0.12549]
[1735235133127,1.3204,189.33,189.28,0.79220551]
[1735235133621,3.8027,189.38,189.32,35.98794494]
[1735235133819,3.8027,189.38,189.33,0.79200189]
[1735235134222,5.1227,189.38,189.3,12.21106094]
[1735235134402,5.1227,189.38,189.3,13.00314792]
[1735235134591,5.1227,189.38,189.31,23.902374]
[1735235134798,5.1227,189.38,189.32,0.79202454]
[1735235135314,5.1227,189.38,189.27,12.21106094]
[1735235135495,5.1227,189.38,189.28,0.79222837]
[1735235135703,5.1227,189.38,189.29,23.776884]
[1735235136019,5.1227,189.38,189.27,23.902374]
[1735235136398,7.7628,189.38,189.27,23.902374]
[1735235136608,20.0,189.35,189.24,149.71106094]
[1735235136813,20.0,189.35,189.25,23.902374]
[1735235137013,20.0,189.35,189.25,36.90572518]
[1735235137322,20.0,189.35,189.27,12.33655094]
[1735235137510,20.0,189.35,189.27,0.12549]
[1735235137709,20.0,189.35,189.28,0.79216511]
[1735235138105,3.8027,189.38,189.32,12.21106094]
[1735235138306,1.3198,189.42,189.33,36.90544368]
[1735235138514,1.3198,189.42,189.33,24.69438274]
[1735235139013,1.3198,189.42,189.3,138.2919672]
[1735235139209,1.3198,189.42,189.3,149.71106094]
[1735235139612,20.0,189.4,189.33,12.33655094]
[1735235139812,1.3198,189.42,189.34,0.12549]
[1735235140324,1.3198,189.42,189.34,23.902374]
[1735235140726,1.3198,189.42,189.34,0.12549]
[1735235141514,1.3198,189.42,189.34,23.902374]
[1735235141727,3.8027,189.43,189.37,23.902374]
[1735235142126,3.8027,189.43,189.37,0.12549]
[1735235142829,3.8027,189.43,189.37,23.902374]
[1735235143425,3.8027,189.43,189.38,13.00287828]
[1735235143630,1.3196,189.46,189.38,13.00287828]
[1735235144040,1.3196,189.46,189.38,0.79181734]
[1735235144531,1.3196,189.46,189.34,12.21106094]
[1735235144903,1.3196,189.46,189.32,12.21106094]
[1735235145720,20.0,189.44,189.34,23.902374]
[1735235146228,1.3197,189.43,189.34,23.902374]
[1735235146433,1.3197,189.43,189.32,12.21106094]
[1735235146726,1.3197,189.43,189.34,23.902374]
[1735235147231,1.3197,189.43,189.33,0.12549]
[1735235148528,1.3197,189.43,189.33,36.11343494]
[1735235148734,1.3197,189.43,189.35,23.902374]
[1735235149838,1.3197,189.43,189.34,0.79194402]
[1735235150130,1.3197,189.43,189.32,149.71106094]
[1735235150334,1.3197,189.43,189.35,23.902374]
[1735235150931,1.3195,189.46,189.37,23.902374]
[1735235151111,1.3195,189.46,189.35,149.71106094]
[1735235151628,1.3195,189.46,189.36,36.90527604]
[1735235156521,1.3195,189.46,189.36,174.40527604]
[1735235156835,9.9919,189.47,189.38,0.12549]
[1735235157016,9.9919,189.47,189.38,36.11343494]
[1735235157216,9.9919,189.47,189.38,36.90509847]
[1735235158750,1.3191,189.52,189.44,23.902374]
[1735235158920,1.3191,189.52,189.43,13.00256244]
[1735235159232,1.3191,189.52,189.38,12.21106094]
[1735235159438,10.3061,189.51,189.37,12.21106094]
[1735235159623,10.3061,189.51,189.36,12.21106094]
[1735235160355,1.3194,189.47,189.37,23.902374]
[1735235163458,20.0,189.48,189.41,0.12549]
[1735235163625,1.3192,189.5,189.41,24.69401792]
[1735235164355,1.3192,189.5,189.41,0.79164392]
[1735235164561,1.3192,189.5,189.37,7.79541602]
[1735235164722,1.3192,189.5,189.37,8.58716013]
[1735235165044,1.3192,189.5,189.38,31.69779002]
[1735235165222,1.3192,189.5,189.4,23.902374]
[1735235165430,1.3192,189.5,189.44,0.12549]
[1735235165743,3.7939,189.51,189.46,23.902374]
[1735235166146,1.319,189.53,189.46,23.902374]
[1735235166358,3.6562,189.55,189.46,36.07703193]
[1735235166544,3.6562,189.55,189.47,0.79139206]
[1735235167659,3.6562,189.55,189.46,36.07703193]
[1735235168055,3.6562,189.55,189.46,23.902374]
[1735235169561,3.6562,189.55,189.46,36.07703193]
[1735235170439,3.6562,189.55,189.48,23.902374]
[1735235170963,3.6562,189.55,189.47,0.79132643]
[1735235171757,3.6562,189.55,189.48,23.902374]
[1735235173350,20.0,189.53,189.39,137.5]
[1735235173564,20.0,189.53,189.37,147.7762]
[1735235173738,20.0,189.53,189.38,0.79169196]
[1735235174065,20.0,189.53,189.39,23.902374]
[1735235174455,20.0,189.49,189.39,23.902374]
[1735235174756,20.0,189.49,189.38,0.79169196]
[1735235174961,20.0,189.49,189.38,12.96634989]
[1735235175261,20.0,189.49,189.39,23.902374]
[1735235177451,20.0,189.49,189.29,157.85254139]
[1735235177452,7.9427,189.47,189.29,157.85254139]
[1735235177638,10.5816,189.47,189.32,12.17465793]
[1735235177962,10.5816,189.47,189.33,12.17465793]
[1735235178158,20.0,189.44,189.32,12.96660512]
[1735235178336,20.0,189.44,189.32,0.79194719]
[1735235178542,20.0,189.44,189.32,12.96660512]
[1735235178736,7.9427,189.47,189.35,12.30014793]
[1735235178940,7.9427,189.47,189.35,13.09196626]
[1735235179849,7.9427,189.47,189.35,12.30014793]
[1735235180051,7.9427,189.47,189.35,13.09196692]
[1735235181052,7.9427,189.47,189.37,23.902374]
[1735235181242,10.5816,189.47,189.35,23.776884]
[1735235181449,20.0,189.44,189.33,12.17465793]
[1735235181654,20.0,189.44,189.33,12.96656576]
[1735235181949,20.0,189.44,189.34,36.07703193]
[1735235182146,3.6872,189.43,189.34,23.902374]
[1735235183371,5.0069,189.43,189.34,23.902374]
[1735235183847,5.0069,189.43,189.35,0.79189566]
[1735235184786,3.6872,189.43,189.38,0.12549]
[1735235185074,6.6233,189.47,189.4,0.12549]
[1735235185279,6.6233,189.47,189.41,23.776884]
[1735235186075,3.8337,189.48,189.44,0.12549]
[1735235186850,3.677,189.52,189.44,0.12549]
[1735235187354,3.677,189.52,189.44,0.91695816]
[1735235187559,3.677,189.52,189.46,0.12549]
[1735235187981,3.677,189.52,189.44,0.79146816]
[1735235188161,4.9961,189.52,189.42,137.5]
[1735235188780,20.0,189.5,189.42,137.5]
[1735235190257,20.0,189.5,189.43,23.902374]
[1735235190484,20.0,189.5,189.43,24.69393161]
[1735235191395,4.9961,189.52,189.43,24.69393161]
[1735235191894,4.9961,189.52,189.43,36.86858954]
[1735235192196,3.677,189.52,189.43,36.86858954]
[1735235192355,3.677,189.52,189.45,23.902374]
[1735235192557,3.677,189.52,189.47,23.902374]
[1735235192885,4.9959,189.56,189.49,23.902374]
[1735235194086,4.9959,189.56,189.47,23.902374]
[1735235194459,20.0,189.54,189.42,12.17465793]
[1735235194793,20.0,189.54,189.44,12.17465793]
[1735235194952,20.0,189.54,189.46,23.902374]
[1735235195283,20.0,189.54,189.48,0.12549]
[1735235195794,4.9959,189.56,189.48,0.12549]
[1735235196700,4.9959,189.56,189.48,23.902374]
[1735235197202,4.9959,189.56,189.44,150.4660598]
[1735235197502,20.0,189.54,189.44,137.5]
[1735235198069,20.0,189.54,189.44,23.902374]
[1735235198293,20.0,189.54,189.44,24.6938537]
[1735235199092,1.319,189.53,189.44,24.6938537]
[1735235199273,1.319,189.53,189.44,36.86851163]
[1735235199693,4.9958,189.56,189.46,12.30014793]
[1735235199994,4.9958,189.56,189.48,23.902374]
[1735235200204,4.9958,189.56,189.47,0.79133152]
[1735235200415,20.0,189.54,189.44,0.79146863]
[1735235200904,20.0,189.53,189.44,0.79146863]
[1735235201203,6.0876,189.5,189.42,0.79156649]
[1735235201363,6.0876,189.5,189.37,143.6088]
[1735235201364,6.0876,189.5,189.39,0.79156649]
[1735235201569,6.0876,189.5,189.39,12.96622442]
[1735235202468,20.0,189.47,189.4,23.902374]
[1735235202877,20.0,189.47,189.37,12.17465793]
[1735235203078,20.0,189.47,189.35,12.17465793]
[1735235203397,3.6257,189.46,189.34,0.79172789]
[1735235203975,6.0876,189.45,189.32,12.17465793]
[1735235204173,20.0,189.42,189.3,0.79199942]
[1735235204376,21.3198,189.42,189.32,12.17465793]
[1735235204591,21.3198,189.42,189.32,12.96665156]
[1735235204791,21.3198,189.42,189.33,12.17465793]
[1735235205572,6.0876,189.45,189.35,23.902374]
[1735235205778,6.0876,189.45,189.37,23.902374]
[1735235205979,6.0876,189.45,189.37,36.07703193]
[1735235206274,6.0876,189.45,189.37,23.902374]
[1735235207805,20.0,189.42,189.32,12.96652227]
[1735235207976,20.0,189.42,189.32,0.79186434]
[1735235208176,20.0,189.42,189.3,12.17465793]
[1735235208596,20.0,189.42,189.31,12.9667035]
[1735235208812,20.0,189.42,189.32,36.07703193]
[1735235208988,20.0,189.42,189.32,23.902374]
[1735235209313,3.6257,189.41,189.3,12.17465793]
[1735235209508,23.6257,189.41,189.22,143.7284]
[1735235209718,20.0,189.37,189.25,12.17465793]
[1735235210009,20.0,189.37,189.23,12.17465793]
[1735235210211,23.6257,189.36,189.23,0.79233937]
[1735235210390,23.6257,189.36,189.22,137.5]
[1735235210579,6.0876,189.35,189.2,12.17465793]
[1735235210784,20.0,189.32,189.21,12.17465793]
[1735235210988,20.0,189.32,189.22,0.12549]
[1735235211189,20.0,189.32,189.23,23.776884]
[1735235212022,20.0,189.32,189.22,12.9671374]
[1735235212522,20.0,189.32,189.23,23.902374]
[1735235212822,1.3205,189.31,189.22,0.79247947]
[1735235213124,1.3205,189.31,189.19,12.17465793]
[1735235213301,3.6257,189.3,189.16,12.17465793]
[1735235213504,3.6257,189.3,189.17,0.79269353]
[1735235214302,6.0876,189.29,189.17,0.79269353]
[1735235214496,20.0,189.26,189.17,0.79269353]
[1735235215020,20.0,189.26,189.17,12.96735146]
[1735235215608,1.3207,189.28,189.19,12.17465793]
[1735235216017,1.3207,189.28,189.18,36.86955853]
[1735235216802,1.3207,189.28,189.18,24.6949006]
[1735235216999,20.0,189.26,189.18,0.7925266]
[1735235217204,20.0,189.26,189.15,12.17465793]
[1735235217602,20.0,189.26,189.13,12.96729044]
[1735235218290,23.7491,189.25,189.11,12.17465793]
[1735235218902,23.7491,189.25,189.1,12.17465793]
[1735235218903,26.5713,189.24,189.1,12.17465793]
[1735235219316,20.0,189.22,189.1,12.17465793]
[1735235219811,20.0,189.21,189.11,12.17465793]
[1735235220513,20.0,189.21,189.1,0.79294345]
[1735235220514,20.0,189.21,189.12,36.07703193]
[1735235220818,20.0,189.21,189.12,36.86991349]
[1735235221916,6.5713,189.24,189.16,36.07703193]
[1735235222121,6.5713,189.24,189.17,12.17465793]
[1735235222322,6.5713,189.24,189.18,36.86964943]
[1735235223519,3.7491,189.25,189.18,36.86964943]
[1735235223701,11.6411,189.29,189.2,12.30014793]
[1735235223894,11.6411,189.29,189.19,23.776884]
[1735235224101,11.6411,189.29,189.18,137.5]
[1735235224510,11.6411,189.29,189.18,149.67465793]
[1735235224720,14.2825,189.29,189.18,137.5]
[1735235224893,14.2825,189.29,189.12,12.17465793]
[1735235224894,20.0,189.26,189.12,12.17465793]
[1735235225224,20.0,189.26,189.1,12.17465793]
[1735235225400,6.5713,189.24,189.1,12.17465793]
[1735235225605,20.0,189.21,189.08,12.96761194]
[1735235225814,1.3213,189.2,189.09,23.902374]
[1735235227214,1.3213,189.2,189.08,12.96761194]
[1735235227415,1.3213,189.2,189.05,12.17465793]
[1735235227416,6.5713,189.16,189.05,12.17465793]
[1735235228226,6.5713,189.16,189.04,0.79312415]
[1735235228401,20.0,189.13,189.03,12.17465793]
[1735235228603,6.5713,189.16,189.06,12.17465793]
[1735235229013,6.5713,189.16,189.07,23.902374]
[1735235230101,6.5713,189.16,189.09,36.07703193]
[1735235230306,3.7491,189.19,189.09,36.07703193]
[1735235230541,3.7491,189.19,189.09,23.902374]
[1735235230718,3.7491,189.19,189.09,0.12549]
[1735235230923,1.3214,189.18,189.06,149.67465793]
[1735235231549,20.0,189.16,189.07,36.07703193]
[1735235231853,1.3214,189.18,189.09,12.17465793]
[1735235232024,1.3214,189.18,189.08,12.30014793]
[1735235232322,1.3214,189.18,189.08,0.12549]
[1735235233247,21.3216,189.16,189.07,24.56998509]
[1735235233456,21.3216,189.16,189.06,137.5]
[1735235233639,21.3216,189.16,189.03,149.67465793]
[1735235233957,21.3216,189.16,189.05,23.902374]
[1735235234128,21.3216,189.16,189.02,12.17465793]
[1735235234458,3.5775,189.11,188.99,12.17465793]
[1735235234624,3.5775,189.11,189.0,24.69577004]
[1735235234825,3.5775,189.11,189.0,0.79339604]
[1735235235539,1.322,189.1,189.0,36.74493797]
[1735235236453,1.322,189.1,189.0,24.57028004]
[1735235236751,1.322,189.1,188.98,12.17465793]
[1735235236926,20.0,189.08,188.98,12.17465793]
[1735235237129,20.0,189.08,188.97,12.17465793]
[1735235237328,6.383,189.07,188.97,12.17465793]
[1735235237756,20.0,189.04,188.98,23.902374]
[1735235238270,3.5775,189.02,188.9,137.5]
[1735235238435,3.5775,189.02,188.91,0.79372044]
[1735235239267,3.5775,189.02,188.91,12.96837837]
[1735235239427,3.5775,189.02,188.92,12.17465793]
[1735235239628,3.5775,189.02,188.95,23.902374]
[1735235239860,3.5775,189.02,188.93,12.9683372]
[1735235240041,3.5775,189.02,188.92,12.17465793]
[1735235240236,3.5775,189.02,188.93,23.902374]
[1735235240562,4.9001,189.02,188.92,12.96836244]
[1735235240974,4.9001,189.02,188.92,0.79370451]
[1735235241156,4.9001,189.02,188.92,23.902374]
[1735235241559,4.9001,189.02,188.9,12.96832764]
[1735235243078,4.9001,189.02,188.91,23.902374]
[1735235243276,4.9001,189.02,188.89,12.17465793]
[1735235243577,20.0,188.98,188.86,0.79379162]
[1735235243775,20.0,188.98,188.86,12.96844955]
[1735235243941,20.0,188.98,188.87,12.17465793]
[1735235244447,1.3229,188.97,188.87,12.96854322]
[1735235244656,1.3229,188.97,188.88,23.902374]
[1735235244870,1.3229,188.97,188.89,0.79383042]
[1735235245058,1.3229,188.97,188.88,23.902374]
[1735235245256,1.3229,188.97,188.87,12.96848835]
[1735235245257,1.3229,188.97,188.87,0.79383042]
[1735235245459,1.3229,188.97,188.87,0.79396504]
[1735235247979,1.3229,188.97,188.84,12.17465793]
[1735235248277,6.3974,188.93,188.83,0.79389219]
[1735235248460,6.3974,188.93,188.84,23.902374]
[1735235248984,6.3974,188.93,188.84,0.12549]
[1735235249274,20.0,188.9,188.81,0.79411308]
[1735235249778,20.0,188.9,188.79,12.17465793]
[1735235249980,20.0,188.9,188.77,12.96890072]
[1735235250165,1.3235,188.89,188.77,0.79424279]
[1735235250478,3.6895,188.88,188.77,0.79424279]
[1735235250861,20.0,188.86,188.77,0.79424279]
[1735235251378,20.0,188.85,188.77,0.79424279]
[1735235251580,20.0,188.85,188.78,23.902374]
[1735235251880,23.6895,188.88,188.81,23.776884]
[1735235252115,23.6895,188.88,188.81,24.57101394]
[1735235252383,23.6895,188.88,188.82,0.12549]
[1735235252586,20.0,188.9,188.82,0.12549]
[1735235252786,10.0869,188.93,188.84,12.30014793]
[1735235252967,10.0869,188.93,188.86,36.07703193]
[1735235253148,11.4098,188.98,188.88,23.902374]
[1735235253784,11.4098,188.98,188.88,0.12549]
[1735235253957,11.4098,188.98,188.87,0.12549]
[1735235254304,11.4098,188.98,188.88,23.776884]
[1735235254581,11.4098,188.98,188.87,0.12549]
[1735235255351,11.4098,188.98,188.89,0.12549]
[1735235256395,11.4098,188.98,188.85,12.17465793]
[1735235256703,20.0,188.95,188.85,12.17465793]
[1735235256868,20.0,188.95,188.86,23.902374]
[1735235257568,20.0,188.95,188.85,0.79394426]
[1735235257779,1.3231,188.94,188.82,12.96865033]
[1735235258198,1.3231,188.94,188.81,12.17465793]
[1735235258500,1.3231,188.94,188.8,12.96881043]
[1735235258709,1.3231,188.94,188.81,23.902374]
[1735235259507,3.9694,188.94,188.81,23.902374]
[1735235259994,3.9694,188.94,188.8,12.96881043]
[1735235260203,3.9694,188.94,188.8,0.7941525]
[1735235260404,3.9694,188.94,188.81,23.902374]
[1735235260600,3.9694,188.94,188.78,12.17465793]
[1735235260806,20.0,188.9,188.77,12.17465793]
[1735235261106,20.0,188.9,188.79,23.902374]
[1735235261107,3.7306,188.89,188.79,23.902374]
[1735235261276,3.7306,188.89,188.77,12.96895648]
[1735235261473,3.7306,188.89,188.73,12.17465793]
[1735235261711,20.0,188.85,188.73,12.96910299]
[1735235262205,20.0,188.85,188.72,0.79444336]
[1735235262410,20.0,188.85,188.65,137.5]
[1735235262710,1.3238,188.84,188.7,23.902374]
[1735235262904,1.3238,188.84,188.68,12.17465793]
[1735235263110,20.0,188.8,188.68,12.17465793]
[1735235263608,20.0,188.8,188.73,0.12549]
[1735235264995,20.0,188.8,188.74,23.776884]
[1735235265508,20.0,188.8,188.72,19.75828268]
[1735235265819,20.0,188.8,188.72,20.5527451]
[1735235265995,20.0,188.8,188.74,23.902374]
[1735235266406,20.0,188.8,188.74,23.776884]
[1735235266707,6.2708,188.83,188.77,19.75828268]
[1735235266885,1.3236,188.87,188.78,23.776884]
[1735235267717,1.3236,188.87,188.76,19.63279268]
[1735235267895,20.0,188.85,188.75,19.63279268]
[1735235268207,20.0,188.85,188.73,19.63279268]
[1735235268584,1.3238,188.84,188.73,19.63279268]
[1735235269303,1.3238,188.84,188.74,44.32966231]
[1735235269505,1.3238,188.84,188.76,19.75828268]
[1735235269704,1.3238,188.84,188.76,0.12549]
[1735235271088,1.3238,188.84,188.76,19.75828268]
[1735235271583,20.0,188.85,188.79,19.63279268]
[1735235272211,1.3236,188.87,188.8,19.63279268]
[1735235272415,1.3236,188.87,188.78,43.53516668]
[1735235272711,9.942,188.88,188.8,43.53516668]
[1735235272929,9.942,188.88,188.81,23.776884]
[1735235273094,9.942,188.88,188.82,19.75828268]
[1735235273412,1.3234,188.91,188.83,19.63279268]
[1735235273618,1.3234,188.91,188.83,20.42684567]
[1735235273979,9.942,188.93,188.85,19.63279268]
[1735235274419,7.5627,188.97,188.88,19.63279268]
[1735235274635,7.5627,188.97,188.88,0.12549]
[1735235274782,7.5627,188.97,188.86,23.776884]
[1735235274984,10.2086,188.97,188.84,137.5]
[1735235275185,10.2086,188.97,188.82,19.63279268]
[1735235275407,10.2086,188.97,188.84,23.902374]
[1735235275604,10.2086,188.97,188.84,44.32917442]
[1735235276114,10.2086,188.97,188.84,23.902374]
[1735235276499,10.2086,188.97,188.84,44.32914456]
[1735235277403,10.2086,188.97,188.84,24.69635188]
[1735235277613,10.2086,188.97,188.84,23.902374]
[1735235277822,1.3232,188.93,188.84,20.5523395]
[1735235278114,1.3232,188.93,188.85,19.63279268]
[1735235278318,1.3232,188.93,188.86,23.902374]
[1735235279205,1.3232,188.93,188.84,20.4268495]
[1735235279388,1.3232,188.93,188.84,19.63279268]
[1735235279921,1.3232,188.93,188.82,19.63279268]
[1735235280093,1.3232,188.93,188.75,13.2448]
[1735235280094,3.9696,188.93,188.8,19.63279268]
[1735235280297,3.9696,188.93,188.79,19.63279268]
[1735235280815,9.9251,188.92,188.76,0.79421055]
[1735235281012,20.0,188.89,188.76,20.42700323]
[1735235281414,20.0,188.89,188.75,19.63279268]
[1735235281728,20.0,188.89,188.75,23.902374]
[1735235281933,3.9706,188.88,188.73,19.63279268]
[1735235282413,3.9706,188.88,188.74,19.63279268]
[1735235282597,3.9706,188.88,188.75,19.63279268]
[1735235282916,3.9706,188.88,188.77,19.63279268]
[1735235283417,3.9706,188.88,188.76,0.12549]
[1735235283716,20.0,188.84,188.72,19.63279268]
[1735235283916,20.0,188.84,188.77,23.902374]
[1735235284112,3.7952,188.86,188.79,23.902374]
[1735235284290,5.1189,188.86,188.75,19.63279268]
[1735235285300,20.0,188.83,188.74,19.63279268]
[1735235285508,21.3239,188.83,188.73,19.63279268]
[1735235285901,21.3239,188.83,188.74,44.32965535]
[1735235286099,20.0,188.84,188.76,19.75828268]
[1735235286320,20.0,188.84,188.79,19.63279268]
[1735235286499,20.0,188.84,188.79,23.776884]
[1735235286922,6.1299,188.87,188.81,23.776884]
[1735235287225,3.7695,188.91,188.84,23.902374]
[1735235287514,3.7695,188.91,188.84,19.75828268]
[1735235287894,3.7695,188.91,188.85,23.776884]
[1735235288301,20.0,188.89,188.85,23.776884]
[1735235288501,20.0,188.89,188.84,23.902374]
[1735235288793,20.0,188.89,188.82,19.63279268]
[1735235289219,20.0,188.88,188.82,19.63279268]
[1735235289520,20.0,188.89,188.85,0.12549]
[1735235289821,11.5662,188.97,188.87,0.12549]
[1735235290017,11.5662,188.97,188.82,19.63279268]
[1735235290319,11.5662,188.97,188.83,23.902374]
[1735235291021,1.3232,188.93,188.82,23.902374]
[1735235291721,1.3232,188.93,188.84,23.902374]